[Event "Paris FIDE GP"]
[Site "Elancourt"]
[Date "2013.10.03"]
[Round "10"]
[White "Grischuk, Alexander"]
[Black "Dominguez Perez, Leinier"]
[Result "1/2-1/2"]
[ECO "C01"]
[WhiteElo "2785"]
[BlackElo "2757"]
[Annotator "ChessBase Website"]
[PlyCount "59"]
[EventDate "2013.09.22"]
[EventType "tourn"]
[EventRounds "11"]
[EventCountry "FRA"]
[EventCategory "20"]
[SourceTitle "CBM 157"]
[Source "ChessBase"]
[SourceDate "2013.11.12"]
[SourceVersion "1"]
[SourceVersionDate "2013.11.12"]
[SourceQuality "1"]
[TimeControl "40/7200:20/3600:900+30"]
[WhiteClock "2:00:00"]
[BlackClock "2:00:00"]

1. e4 {[%emt 0:00:04]} e5 {[%emt 0:00:47]} 2. Nf3 {[%emt 0:04:29]} Nf6 {
[%emt 0:00:08]} 3. Nxe5 {[%emt 0:09:25]} d6 {[%emt 0:00:19]} 4. Nf3 {[%emt 0:
00:09]} Nxe4 {[%emt 0:00:09]} 5. d3 {[%emt 0:01:44] The Russian player played
an unusual 5.d3 which transposes into an exchange French, hardly the most
testing way of playing against the Petroff. Dominguez had no problems holding
equality and forcing a repetition shortly afterwards.} Nf6 {[%emt 0:00:16]} 6.
d4 {[%emt 0:00:03]} d5 {[%emt 0:14:07]} 7. Bg5 {[%emt 0:16:27]} Be7 {[%emt 0:
05:23]} 8. Bd3 {[%emt 0:00:28]} O-O {[%emt 0:01:51]} 9. O-O {[%emt 0:06:42]}
Bg4 {[%emt 0:13:39]} 10. Nbd2 {[%emt 0:02:07]} Nbd7 {[%emt 0:01:05]} 11. c3 {
[%emt 0:06:56]} (11. Re1) 11... c6 {[%emt 0:10:25]} 12. Qc2 {[%emt 0:04:40]} (
12. Re1) 12... h6 {[%emt 0:03:34]} 13. Bf4 {[%emt 0:08:47]} (13. Bh4 Re8 14.
Rfe1) 13... Nh5 $11 {[%emt 0:16:31]} 14. Be5 {[%emt 0:00:37]} Nxe5 {[%emt 0:01:
00]} 15. dxe5 {[%emt 0:10:58]} Nf4 {[%emt 0:06:54]} 16. Bh7+ {[%emt 0:05:35]}
Kh8 {[%emt 0:00:02]} 17. Bf5 {[%emt 0:00:06]} Bxf5 {[%emt 0:00:07]} 18. Qxf5 {
[%emt 0:00:04]} Ne6 {[%emt 0:00:07]} 19. Nd4 {[%emt 0:00:05]} Bc5 {[%emt 0:06:
15]} 20. N2b3 {[%emt 0:17:43]} Bxd4 {[%emt 0:04:06]} 21. Nxd4 {[%emt 0:03:05]}
Qb6 {[%emt 0:00:34]} 22. Qd3 {[%emt 0:10:11]} Qxb2 {[%emt 0:02:30]} 23. Rfb1 {
[%emt 0:02:49]} Qa3 {[%emt 0:00:55]} 24. Nxe6 {[%emt 0:00:03]} fxe6 {[%emt 0:
00:07]} 25. Rxb7 {[%emt 0:00:03]} Rab8 {[%emt 0:11:03]} 26. Rc7 {[%emt 0:00:09]
} Rbc8 {[%emt 0:05:08]} 27. Rb7 {[%emt 0:00:18]} Rb8 {[%emt 0:01:39]} 28. Rc7 {
[%emt 0:00:01]} Rbc8 {[%emt 0:02:23]} 29. Rb7 {[%emt 0:00:32]} Rb8 {[%emt 0:01:
49]} 30. Rc7 {[%emt 0:00:05]} 1/2-1/2

[Event "Metz op 31th"]
[Site "Metz"]
[Date "2013.04.25"]
[Round "9"]
[White "Lagarde, Maxime"]
[Black "Nguyen, Chi Minh"]
[Result "1-0"]
[ECO "C01"]
[WhiteElo "2532"]
[BlackElo "2372"]
[Annotator "Metz Alekhine/Primel,D"]
[PlyCount "65"]
[EventDate "2013.04.20"]
[EventType "swiss"]
[EventRounds "9"]
[EventCountry "FRA"]
[SourceTitle "EXT 2016"]
[Source "ChessBase"]
[SourceDate "2015.10.08"]
[SourceVersion "1"]
[SourceVersionDate "2015.10.08"]
[SourceQuality "1"]
[TimeControl "40/5400:1800+30"]
[WhiteClock "1:30:00"]
[BlackClock "1:30:00"]

1. e4 e6 2. d4 d5 3. Nc3 Bb4 4. exd5 (4. e5) 4... exd5 5. Bd3 Nc6 6. a3 {
La grande ligne} (6. Be3 Nge7 7. Qf3 Be6 8. Nge2 Qd7 {[%cal Ge6g4]} (8... Ng6
$146 9. h4 $5 Nxh4 (9... Qd7 $5 10. h5 Bg4 11. Qg3 Bd6 12. Nf4 Nxf4 13. Bxf4
Bxf4 14. Qxf4 O-O-O {[%csl Re1][%cal Gh8e8]} 15. f3 Qe7+ (15... Rhe8+) 16. Ne2
Be6 17. O-O-O {Les Blancs ont un léger avantage d'espace à l'aile-roi et un
meilleur B mais la position Noire est solide}) 10. Qg3 Ng6 11. Bxg6 $5 {
[%cal Gh1h8]} fxg6 12. Rxh7 $1 Rxh7 13. Qxg6+ Kd7 14. Qxh7 Qh8 $1 {Il manque
un tempo aux Blancs pour roquer} 15. Qxh8 Rxh8 16. O-O-O) 9. h3 {Margolin,B 
(2436) -Alarcon Casellas,R (2367) Capablanca Memorial op 44th 2009 (3) 1/2-1/2}
) (6. Nge2 Nge7 7. Bg5 $14) 6... Ba5 (6... Bxc3+ 7. bxc3 Nge7 (7... Nf6)) 7.
Be3 Nge7 8. Qf3 (8. Qh5) 8... Be6 9. Nge2 Ng6 (9... Qd7 {[%cal Ge6g4]}) 10. h4
Nxh4 11. Qg3 Ng6 12. Bxg6 fxg6 13. Rxh7 Rxh7 14. Qxg6+ Kd7 15. Qxh7 Qh8 16.
Qxh8 Rxh8 17. O-O-O Bxc3 $6 {Pourquoi abandonner la paire de B?} 18. Nxc3 Ne7
19. Bf4 c6 20. Ne2 Ng6 21. Bg3 Bg4 22. Re1 (22. f3) 22... Bxe2 {Le B n'était
pas trés bon et il est compréhensible de l'échanger mais en contrepartie,
il n'y aura pas de finale de B de couleurs opposées pour essayer d'annuler.}
23. Rxe2 Rh1+ 24. Kd2 Rb1 25. b3 b5 $6 (25... Rh1 $5 {Il vaut mieux essayer de
garder les R et tenter d'échanger le N contre le B afin de jouer une finale
de R plutôt qu'une finale N contre B comme dans la partie qui sera plus
difficile à jouer pour annuler}) 26. Re1 $1 {Rentrant dans une finale
favorable} Rxe1 27. Kxe1 $16 Nf8 {le N manque de cases fortes au centre} 28.
Be5 {[%csl Ge5]} g6 29. Kd2 {[%cal Gd2g5,Gd2a5] Un coup souple laissant
l'option de faire monter le K sur les deux ailes} Ne6 30. Kc3 Nd8 (30... a5)
31. f4 Ke6 32. g4 Nb7 {[%csl Rb7] Le N est complètement dominé par le B} 33.
Bc7 $36 {[%csl Rb7] Suite illisible et gain Blanc au 52ème coup.} 1-0

[Event "Rohde op 12th"]
[Site "Sautron"]
[Date "2012.11.03"]
[Round "9"]
[White "Lagarde, Maxime"]
[Black "Bedouin, Xavier"]
[Result "1/2-1/2"]
[ECO "C01"]
[WhiteElo "2501"]
[BlackElo "2414"]
[Annotator "RR"]
[PlyCount "83"]
[EventDate "2012.10.27"]
[EventType "swiss"]
[EventRounds "9"]
[EventCountry "FRA"]
[SourceTitle "EXT 2014"]
[Source "ChessBase"]
[SourceDate "2013.11.20"]
[SourceVersion "1"]
[SourceVersionDate "2013.11.20"]
[SourceQuality "1"]
[TimeControl "40/5400+30:1800+30"]
[WhiteClock "1:30:00"]
[BlackClock "1:30:00"]

1. e4 {[%emt 0:00:00]} e5 {[%emt 0:00:00]} 2. Nf3 {[%emt 0:00:00]} Nf6 {
[%emt 0:00:00]} 3. Nxe5 {[%emt 0:00:10]} d6 {[%emt 0:00:00]} 4. Nf3 {[%emt 0:
00:04]} Nxe4 {[%emt 0:00:08]} 5. d3 {[%emt 0:01:18]} Nf6 {[%emt 0:01:18]} 6. d4
{[%emt 0:00:05]} d5 {[%emt 0:00:45]} 7. Bd3 {[%emt 0:00:54]} Bd6 {[%emt 0:01:
23]} 8. h3 {[%emt 0:00:51]} O-O {[%emt 0:03:02]} 9. O-O {[%emt 0:01:12]} h6 {
[%emt 0:00:45]} 10. Re1 {[%emt 0:01:51]} Re8 {[%emt 0:06:50]} 11. Rxe8+ {
[%emt 0:00:58]} ({RR} 11. Nbd2 Rxe1+ 12. Qxe1 Nc6 13. c3 Ne7 14. Nf1 Bf5 {
1/2-1/2 Belikov,V (2519)-Shtyrenkov,V (2459)/Alushta 2005/CBM 108 ext}) 11...
Qxe8 {[%emt 0:00:21]} 12. Nc3 {[%emt 0:00:45]} (12. Be3) 12... c6 {[%emt 0:00:
38]} 13. Ne2 {[%emt 0:00:05]} Ne4 {[%emt 0:02:45]} (13... Be6) 14. Bf4 {
[%emt 0:00:22]} Bxf4 {[%emt 0:00:59]} 15. Nxf4 {[%emt 0:00:10]} Bf5 {[%emt 0:
00:33]} 16. c3 {[%emt 0:01:54]} Nd7 {[%emt 0:01:37]} 17. Qc2 {[%emt 0:03:33]}
Ndf6 {[%emt 0:07:39]} 18. Re1 {[%emt 0:01:16][%cal Ge1e8,Gf3e5,Gf2f3]} Qb8 {
[%emt 0:02:44]} 19. Ne2 {[%emt 0:01:45]} (19. Ne5 $5 {[%cal Gf2f3]}) 19... Qc7
{[%emt 0:01:01]} 20. Qc1 {[%emt 0:01:01]} Nd6 {[%emt 0:01:45]} 21. Bxf5 {
[%emt 0:00:17]} Nxf5 {[%emt 0:00:08]} 22. Qf4 {[%emt 0:00:14]} Qxf4 {[%emt 0:
00:16]} 23. Nxf4 {[%emt 0:00:04]} Re8 {[%emt 0:00:22]} 24. Rxe8+ {[%emt 0:00:
43]} Nxe8 {[%emt 0:00:10]} 25. Kf1 {[%emt 0:01:05]} Kf8 {[%emt 0:02:23]} 26.
Ke2 {[%emt 0:01:29]} Ke7 {[%emt 0:00:49]} 27. Kd3 {[%emt 0:00:17]} a5 {[%emt 0:
00:53]} 28. Nd2 {[%emt 0:00:56]} Nfd6 {[%emt 0:00:28]} 29. f3 {[%emt 0:00:43]}
Nc7 {[%emt 0:00:15][%cal Gc7e6]} 30. Nf1 {[%emt 0:00:26]} Ne6 $11 {[%emt 0:00:
50]} 31. Nxe6 {[%emt 0:00:32]} Kxe6 {[%emt 0:00:08]} 32. Ne3 {[%emt 0:00:31]}
Nf5 {[%emt 0:00:45]} 33. Nxf5 {[%emt 0:00:35]} Kxf5 {[%emt 0:00:09]} 34. Ke3 {
[%emt 0:00:17]} g5 {[%emt 0:04:36]} 35. g4+ {[%emt 0:00:10]} Ke6 {[%emt 0:00:
13]} 36. Kd3 {[%emt 0:00:45]} b5 {[%emt 0:00:55]} 37. b4 {[%emt 0:00:50][%csl
Rc6]} a4 {[%emt 0:04:08]} 38. a3 {[%emt 0:06:12]} f5 $1 {[%emt 0:04:03] Il n'y
a plus de leviers pour les Blancs et la nulle est inévitable} 39. Kc2 {[%emt 0:
03:57]} f4 {[%emt 0:01:21]} 40. Kb2 {[%emt 0:00:00]} Kf6 {[%emt 0:00:00]} 41.
Ka1 {[%emt 0:03:10]} Ke6 {[%emt 0:04:22]} 42. Kb1 {[%emt 0:00:45]} 1/2-1/2